[Event "White Rook U14 Final 2019"]
[Site "Sochi"]
[Date "2019.06.06"]
[Round "1.14"]
[White "Usov, Aleksandr E."]
[Black "Novikov, Vladislav"]
[Result "1-0"]
[ECO "C10"]
[WhiteElo "1812"]
[BlackElo "1501"]
[Annotator "NA RC"]
[PlyCount "91"]
[EventDate "2019.06.02"]
[EventCountry "RUS"]
[SourceTitle "playchess.com"]
[Source "ChessBase"]
[SourceQuality "1"]
[TimeControl "5400+30"]

1. e4 {[%emt 0:00:00]} e6 {[%emt 0:00:00]} 2. d4 {[%emt 0:00:00]} d5 {[%emt 0:00:00]} 3. Nd2 {[%emt 0:00:00]} dxe4 {[%emt 0:00:00]} 4. Nxe4 {[%emt 0:00:00]} Bd7 {[%emt 0:00:00]} 5. Nf3 {[%emt 0:00:07]} Bc6 {[%emt 0:00:00]} 6. Bd3 {[%emt 0:00:00]} Nd7 {[%emt 0:01:17]} 7. O-O {[%emt 0:00:03]} Be7 {[%emt 0:00:00]} 8. Ne5 {[%emt 0:01:28]} Bxe4 {[%emt 0:01:41]} 9. Bxe4 {[%emt 0:00:08]} c6 {[%emt 0:00:40]} 10. Qh5 {[%emt 0:02:42]} Nxe5 {[%emt 0:02:11]} 11. dxe5 {[%emt 0:00:16]} g6 {[%emt 0:04:59]} 12. Qe2 {[%emt 0:00:05]} Bc5 {[%emt 0:02:32]} 13. Rd1 {[%emt 0:04:21]} Qb6 {[%emt 0:00:54]} 14. c3 {[%emt 0:08:58]} a5 {[%emt 0:01:30]} 15. Bg5 {[%emt 0:03:28]} Ne7 {[%emt 0:04:43]} 16. Rd2 {[%emt 0:13:24]} h6 {[%emt 0:01:45]} 17. Bf6 {[%emt 0:02:29]} Rg8 {[%emt 0:04:02]} 18. Rad1 {[%emt 0:01:00]} Nd5 {[%emt 0:09:35]} 19. c4 {[%emt 0:07:57]} Nxf6 {[%emt 0:09:28]} 20. exf6 {[%emt 0:00:02]} Qc7 {[%emt 0:02:23]} 21. Qd3 {[%emt 0:01:34]} Bb6 {[%emt 0:02:53]} 22. c5 {[%emt 0:16:05]} Bxc5 {[%emt 0:01:03]} 23. Qd7+ {[%emt 0:04:35]} Qxd7 {[%emt 0:00:28]} 24. Rxd7 {[%emt 0:00:00]} Rb8 {[%emt 0:03:10]} 25. Rxb7 {[%emt 0:00:20]} Rc8 {[%emt 0:01:46]} 26. Bxc6+ {[%emt 0:00:08]} Kf8 {[%emt 0:00:27]} 27. Rdd7 {[%emt 0:00:24]} Rg7 {[%emt 0:00:58]} 28. fxg7+ {[%emt 0:00:56]} Kxg7 {[%emt 0:00:00]} 29. Rxf7+ {[%emt 0:00:00]} Kg8 {[%emt 0:00:00]} 30. Rg7+ {[%emt 0:00:20]} Kh8 {[%emt 0:00:27]} 31. Rh7+ {[%emt 0:00:00]} Kg8 {[%emt 0:00:00]} 32. Rbg7+ {[%emt 0:01:50]} Kf8 {[%emt 0:00:00]} 33. Rh8+ {[%emt 0:00:45]} Kxg7 {[%emt 0:00:23]} 34. Rxc8 {[%emt 0:00:04]} Bd4 {[%emt 0:00:00]} 35. Be4 {[%emt 0:00:03]} Bxb2 {[%emt 0:00:00]} 36. Rc6 {[%emt 0:00:22]} Kf7 {[%emt 0:00:52]} 37. Bxg6+ {[%emt 0:01:17]} Kxg6 {[%emt 0:00:11]} 38. Rxe6+ {[%emt 0:00:06]} Kg5 {[%emt 0:00:45]} 39. g3 {[%emt 0:00:54]} h5 {[%emt 0:00:18]} 40. f4+ {[%emt 0:00:00]} Kf5 {[%emt 0:00:39]} 41. Re2 {[%emt 0:00:14]} Bd4+ {[%emt 0:00:22]} 42. Kg2 {[%emt 0:01:03]} h4 {[%emt 0:00:00]} 43. Kf3 {[%emt 0:00:00]} Kg6 {[%emt 0:00:40]} 44. Re6+ {[%emt 0:00:12]} Kf5 {[%emt 0:00:00]} 45. Rd6 {[%emt 0:00:05]} Bg1 {[%emt 0:00:25]} 46. g4# {[%emt 0:00:06]} 1-0

[Event "White Rook U14 Final 2019"]
[Site "Sochi"]
[Date "2019.06.06"]
[Round "1.15"]
[White "Shuvaev, Aleksandr"]
[Black "Saikin, Ilia"]
[Result "0-1"]
[ECO "E15"]
[WhiteElo "1323"]
[BlackElo "1641"]
[Annotator "NA RC"]
[PlyCount "120"]
[EventDate "2019.06.02"]
[EventCountry "RUS"]
[SourceTitle "playchess.com"]
[Source "ChessBase"]
[SourceQuality "1"]
[TimeControl "5400+30"]

1. d4 {[%emt 0:00:00]} Nf6 {[%emt 0:00:13]} 2. c4 {[%emt 0:00:09]} e6 {[%emt 0:00:03]} 3. Nf3 {[%emt 0:00:08]} b6 {[%emt 0:00:15]} 4. g3 {[%emt 0:00:16]} Ba6 {[%emt 0:00:11]} 5. b3 {[%emt 0:00:33]} Bb4+ {[%emt 0:00:30]} 6. Bd2 {[%emt 0:00:14]} Be7 {[%emt 0:00:16]} 7. Bg2 {[%emt 0:00:24]} Bb7 {[%emt 0:00:06]} 8. O-O {[%emt 0:00:13]} O-O {[%emt 0:00:16]} 9. Nc3 {[%emt 0:00:15]} c5 {[%emt 0:00:59]} 10. dxc5 {[%emt 0:04:19]} bxc5 {[%emt 0:01:24]} 11. Qc2 {[%emt 0:01:11]} Nc6 {[%emt 0:02:10]} 12. Rad1 {[%emt 0:03:04]} Nb4 {[%emt 0:26:09]} 13. Qb1 {[%emt 0:02:27]} a6 {[%emt 0:11:20]} 14. Rfe1 {[%emt 0:02:45]} d6 {[%emt 0:09:14]} 15. Bg5 {[%emt 0:09:43]} Qc7 {[%emt 0:05:21]} 16. a3 {[%emt 0:12:14]} Nc6 {[%emt 0:00:47]} 17. Bxf6 {[%emt 0:06:59]} Bxf6 {[%emt 0:00:31]} 18. Ne4 {[%emt 0:01:15]} Be7 {[%emt 0:00:10]} 19. Neg5 {[%emt 0:05:50]} g6 {[%emt 0:00:44]} 20. h4 {[%emt 0:01:53]} Nd8 {[%emt 0:03:15]} 21. h5 {[%emt 0:11:31]} Bxg5 {[%emt 0:03:13]} 22. Nxg5 {[%emt 0:01:06]} Bxg2 {[%emt 0:00:00]} 23. Kxg2 {[%emt 0:01:44]} Qe7 {[%emt 0:04:57]} 24. Ne4 {[%emt 0:02:29]} Nb7 {[%emt 0:00:00]} 25. hxg6 {[%emt 0:00:35]} hxg6 {[%emt 0:00:04]} 26. Rh1 {[%emt 0:00:58]} f5 {[%emt 0:00:45]} 27. Qb2 {[%emt 0:06:17]} e5 {[%emt 0:01:46]} 28. Nd2 {[%emt 0:01:04]} Rf7 {[%emt 0:08:29]} 29. Rh2 {[%emt 0:02:26]} Rh7 {[%emt 0:00:10]} 30. Rdh1 {[%emt 0:00:48]} Rxh2+ {[%emt 0:00:12]} 31. Rxh2 {[%emt 0:00:05]} Rb8 {[%emt 0:02:21]} 32. f4 {[%emt 0:01:53]} Na5 {[%emt 0:00:10]} 33. b4 {[%emt 0:02:02]} cxb4 {[%emt 0:01:02]} 34. axb4 {[%emt 0:00:35]} Qb7+ {[%emt 0:00:19]} 35. Nf3 {[%emt 0:05:43]} Nxc4 {[%emt 0:01:16]} 36. Qa2 {[%emt 0:06:29]} Qd5 {[%emt 0:01:02]} 37. Kf2 {[%emt 0:02:32]} e4 {[%emt 0:00:37]} 38. Qa1 {[%emt 0:02:05]} Ne5 {[%emt 0:14:07]} 39. fxe5 {[%emt 0:01:19]} exf3 {[%emt 0:00:17]} 40. e6 {[%emt 0:00:44]} Qe5 {[%emt 0:00:25]} 41. Qxe5 {[%emt 0:00:53]} dxe5 {[%emt 0:00:09]} 42. Kxf3 {[%emt 0:00:20]} Re8 {[%emt 0:00:34]} 43. e4 {[%emt 0:00:25]} Rxe6 {[%emt 0:00:15]} 44. Rc2 {[%emt 0:00:26]} Kf7 {[%emt 0:00:10]} 45. g4 {[%emt 0:01:36]} Kf6 {[%emt 0:01:22]} 46. gxf5 {[%emt 0:01:03]} gxf5 {[%emt 0:00:07]} 47. exf5 {[%emt 0:00:16]} Kxf5 {[%emt 0:00:04]} 48. Rf2 {[%emt 0:00:33]} e4+ {[%emt 0:00:38]} 49. Ke3+ {[%emt 0:00:08]} Ke5 {[%emt 0:00:03]} 50. Rc2 {[%emt 0:00:26]} Rd6 {[%emt 0:00:35]} 51. Rc5+ {[%emt 0:00:18]} Rd5 {[%emt 0:00:04]} 52. Ra5 {[%emt 0:00:10]} Rxa5 {[%emt 0:00:29]} 53. bxa5 {[%emt 0:00:05]} Kd5 {[%emt 0:00:01]} 54. Kf4 {[%emt 0:00:08]} Kd4 {[%emt 0:00:09]} 55. Kg3 {[%emt 0:00:19]} Kd3 {[%emt 0:00:10]} 56. Kf2 {[%emt 0:00:08]} Kd2 {[%emt 0:00:10]} 57. Kf1 {[%emt 0:00:19]} e3 {[%emt 0:00:06]} 58. Kg2 {[%emt 0:00:48]} e2 {[%emt 0:00:03]} 59. Kf3 {[%emt 0:00:10]} e1=Q {[%emt 0:00:06]} 60. Kf4 {[%emt 0:00:14]} Kd3 {[%emt 0:00:07]} 0-1

[Event "White Rook U14 Final 2019"]
[Site "Sochi"]
[Date "2019.06.06"]
[Round "1.16"]
[White "Krupnova, Anna"]
[Black "Savchenko, Taisiya"]
[Result "1-0"]
[ECO "E73"]
[WhiteElo "1714"]
[BlackElo "1170"]
[Annotator "NA RC"]
[PlyCount "43"]
[EventDate "2019.06.02"]
[EventCountry "RUS"]
[SourceTitle "playchess.com"]
[Source "ChessBase"]
[SourceQuality "1"]
[TimeControl "5400+30"]

1. d4 {[%emt 0:00:00]} g6 {[%emt 0:00:00]} 2. c4 {[%emt 0:00:00]} Bg7 {[%emt 0:00:00]} 3. Nc3 {[%emt 0:00:00]} d6 {[%emt 0:00:00]} 4. e4 {[%emt 0:00:34]} Nd7 {[%emt 0:00:40]} 5. Be2 {[%emt 0:01:57]} e5 {[%emt 0:01:35]} 6. d5 {[%emt 0:02:31]} Ngf6 {[%emt 0:00:13]} 7. Bg5 {[%emt 0:00:28]} O-O {[%emt 0:01:26]} 8. Qd2 {[%emt 0:00:54]} Re8 {[%emt 0:00:00]} 9. f3 {[%emt 0:04:53]} a5 {[%emt 0:14:25]} 10. g4 {[%emt 0:02:43]} Nc5 {[%emt 0:04:41]} 11. h4 {[%emt 0:02:04]} h5 {[%emt 0:09:57]} 12. gxh5 {[%emt 0:02:23]} gxh5 {[%emt 0:02:56]} 13. Nh3 {[%emt 0:03:27]} Kh7 {[%emt 0:14:29]} 14. O-O-O {[%emt 0:09:20]} Re7 {[%emt 0:09:56]} 15. Rdg1 {[%emt 0:06:11]} Qf8 {[%emt 0:06:38]} 16. Be3 {[%emt 0:13:27]} a4 {[%emt 0:07:50]} 17. Rxg7+ {[%emt 0:05:11]} Qxg7 {[%emt 0:03:42]} 18. Rg1 {[%emt 0:02:57]} Qf8 {[%emt 0:00:10]} 19. Bh6 {[%emt 0:26:25]} Qd8 {[%emt 0:07:03]} 20. Qg5 {[%emt 0:03:47]} Qg8 {[%emt 0:02:53]} 21. Qxf6 {[%emt 0:02:16]} Qh8 {[%emt 0:01:16]} 22. Rg7+ {[%emt 0:00:40]} 1-0

[Event "White Rook U14 Final 2019"]
[Site "Sochi"]
[Date "2019.06.06"]
[Round "1.17"]
[White "Novoselov, Danil"]
[Black "Khusnulgatin, Artem"]
[Result "0-1"]
[ECO "B75"]
[WhiteElo "1723"]
[BlackElo "1653"]
[Annotator "NA RC"]
[PlyCount "138"]
[EventDate "2019.06.02"]
[EventCountry "RUS"]
[SourceTitle "playchess.com"]
[Source "ChessBase"]
[SourceQuality "1"]
[TimeControl "5400+30"]

1. e4 {[%emt 0:00:00]} c5 {[%emt 0:00:00]} 2. Nf3 {[%emt 0:00:00]} d6 {[%emt 0:00:00]} 3. d4 {[%emt 0:00:00]} cxd4 {[%emt 0:00:00]} 4. Nxd4 {[%emt 0:00:00]} Nf6 {[%emt 0:00:00]} 5. Nc3 {[%emt 0:00:00]} g6 {[%emt 0:00:00]} 6. Be3 {[%emt 0:00:00]} Bg7 {[%emt 0:00:10]} 7. f3 {[%emt 0:00:06]} Nc6 {[%emt 0:00:47]} 8. Bc4 {[%emt 0:00:58]} Bd7 {[%emt 0:00:41]} 9. Qd2 {[%emt 0:03:20]} a6 {[%emt 0:01:06]} 10. g4 {[%emt 0:00:33]} Rc8 {[%emt 0:01:05]} 11. Bb3 {[%emt 0:00:05]} Ne5 {[%emt 0:02:12]} 12. h4 {[%emt 0:01:48]} Nc4 {[%emt 0:00:12]} 13. Bxc4 {[%emt 0:00:03]} Rxc4 {[%emt 0:00:16]} 14. h5 {[%emt 0:01:45]} b5 {[%emt 0:13:48]} 15. h6 {[%emt 0:09:38]} Bf8 {[%emt 0:00:08]} 16. Nde2 {[%emt 0:08:17]} e5 {[%emt 0:03:23]} 17. g5 {[%emt 0:04:08]} Nh5 {[%emt 0:00:15]} 18. Nd5 {[%emt 0:09:06]} Be6 {[%emt 0:02:02]} 19. b3 {[%emt 0:13:44]} Rc8 {[%emt 0:02:06]} 20. Rxh5 {[%emt 0:03:38]} Bxd5 {[%emt 0:00:38]} 21. Nc3 {[%emt 0:15:06]} Be6 {[%emt 0:01:38]} 22. Rh2 {[%emt 0:01:12]} Qc7 {[%emt 0:01:06]} 23. Nd5 {[%emt 0:00:55]} Bxd5 {[%emt 0:00:00]} 24. exd5 {[%emt 0:00:12]} Be7 {[%emt 0:00:55]} 25. f4 {[%emt 0:03:22]} O-O {[%emt 0:01:03]} 26. O-O-O {[%emt 0:04:19]} Rfd8 {[%emt 0:04:37]} 27. Kb1 {[%emt 0:02:26]} a5 {[%emt 0:00:29]} 28. Rf1 {[%emt 0:01:20]} a4 {[%emt 0:02:51]} 29. Qf2 {[%emt 0:01:14]} Rf8 {[%emt 0:01:27]} 30. fxe5 {[%emt 0:01:56]} dxe5 {[%emt 0:01:17]} 31. Rd1 {[%emt 0:01:06]} axb3 {[%emt 0:02:17]} 32. cxb3 {[%emt 0:00:16]} Qd6 {[%emt 0:00:54]} 33. Qf1 {[%emt 0:06:48]} Qb4 {[%emt 0:04:28]} 34. d6 {[%emt 0:01:01]} Bd8 {[%emt 0:00:31]} 35. d7 {[%emt 0:01:25]} Rc3 {[%emt 0:00:57]} 36. Bc1 {[%emt 0:01:29]} Qe4+ {[%emt 0:13:54]} 37. Kb2 {[%emt 0:01:46]} Rc5 {[%emt 0:00:00]} 38. Re2 {[%emt 0:01:05]} Qc6 {[%emt 0:00:00]} 39. Be3 {[%emt 0:00:25]} Rd5 {[%emt 0:00:00]} 40. Qg2 {[%emt 0:00:40]} Rd6 {[%emt 0:00:00]} 41. Rxd6 {[%emt 0:01:40]} Qxd6 {[%emt 0:00:00]} 42. Rd2 {[%emt 0:00:03]} Qe6 {[%emt 0:01:50]} 43. Qa8 {[%emt 0:01:47]} e4 {[%emt 0:11:19]} 44. Kb1 {[%emt 0:00:19]} Qf5 {[%emt 0:06:27]} 45. Qd5 {[%emt 0:01:01]} Qf1+ {[%emt 0:00:55]} 46. Kb2 {[%emt 0:00:20]} Qe1 {[%emt 0:06:40]} 47. Qd4 {[%emt 0:00:45]} f6 {[%emt 0:01:05]} 48. gxf6 {[%emt 0:00:10]} Rxf6 {[%emt 0:03:05]} 49. Bg5 {[%emt 0:01:02]} e3 {[%emt 0:01:28]} 50. Bxe3 {[%emt 0:00:15]} Rf7 {[%emt 0:02:36]} 51. Bf2 {[%emt 0:01:42]} Qe7 {[%emt 0:02:10]} 52. Kc2 {[%emt 0:00:37]} b4 {[%emt 0:02:06]} 53. Qd5 {[%emt 0:00:19]} g5 {[%emt 0:02:03]} 54. Bc5 {[%emt 0:00:12]} Qf6 {[%emt 0:01:19]} 55. Bxb4 {[%emt 0:00:50]} Qxh6 {[%emt 0:00:00]} 56. Qa8 {[%emt 0:00:10]} Qf6 {[%emt 0:01:00]} 57. Bc3 {[%emt 0:00:47]} Qf5+ {[%emt 0:00:29]} 58. Kb2 {[%emt 0:00:05]} Rxd7 {[%emt 0:00:36]} 59. Rxd7 {[%emt 0:00:31]} Qxd7 {[%emt 0:00:31]} 60. Ba5 {[%emt 0:00:00]} Qg7+ {[%emt 0:00:20]} 61. Ka3 {[%emt 0:00:16]} Qf8+ {[%emt 0:00:12]} 62. b4 {[%emt 0:00:18]} Be7 {[%emt 0:00:39]} 63. Qxf8+ {[%emt 0:00:34]} Kxf8 {[%emt 0:00:16]} 64. Ka4 {[%emt 0:00:12]} Ke8 {[%emt 0:00:32]} 65. b5 {[%emt 0:00:33]} Kd7 {[%emt 0:00:37]} 66. Bb4 {[%emt 0:00:24]} Bxb4 {[%emt 0:00:40]} 67. Kxb4 {[%emt 0:00:03]} g4 {[%emt 0:00:06]} 68. Ka5 {[%emt 0:00:05]} g3 {[%emt 0:00:42]} 69. b6 {[%emt 0:00:38]} g2 {[%emt 0:00:21]} 0-1

[Event "White Rook U14 Final 2019"]
[Site "Sochi"]
[Date "2019.06.06"]
[Round "1.20"]
[White "Timofeeva, Darya M."]
[Black "Nasyrova, Ekaterina"]
[Result "0-1"]
[ECO "C45"]
[WhiteElo "1098"]
[BlackElo "2148"]
[Annotator "RC"]
[PlyCount "106"]
[EventDate "2019.06.02"]
[EventCountry "RUS"]
[SourceTitle "playchess.com"]
[Source "ChessBase"]
[SourceQuality "1"]
[TimeControl "5400+30"]

1. e4 {[%emt 0:00:00]} e5 {[%emt 0:00:00]} 2. Nf3 {[%emt 0:00:00]} Nc6 {[%emt 0:00:00]} 3. d4 {[%emt 0:00:00]} exd4 {[%emt 0:00:00]} 4. Nxd4 {[%emt 0:00:00]} Bb4+ {[%emt 0:00:00]} 5. c3 {[%emt 0:00:31]} Bc5 {[%emt 0:00:00]} 6. Be3 {[%emt 0:00:00]} Bb6 {[%emt 0:00:00]} 7. Nxc6 {[%emt 0:00:38]} bxc6 {[%emt 0:00:25]} 8. Bxb6 {[%emt 0:00:00]} axb6 {[%emt 0:00:00]} 9. Bd3 {[%emt 0:00:58]} Ne7 {[%emt 0:00:23]} 10. O-O {[%emt 0:01:06]} O-O {[%emt 0:00:38]} 11. Re1 {[%emt 0:00:04]} Ng6 {[%emt 0:00:00]} 12. Nd2 {[%emt 0:01:52]} d6 {[%emt 0:03:51]} 13. Nf3 {[%emt 0:02:07]} Re8 {[%emt 0:02:45]} 14. Bc2 {[%emt 0:06:56]} Qf6 {[%emt 0:03:14]} 15. Qd4 {[%emt 0:01:12]} Qf4 {[%emt 0:03:33]} 16. e5 {[%emt 0:07:09]} Qxd4 {[%emt 0:01:51]} 17. cxd4 {[%emt 0:00:45]} Bg4 {[%emt 0:02:09]} 18. Bxg6 {[%emt 0:00:18]} hxg6 {[%emt 0:00:06]} 19. a3 {[%emt 0:00:41]} Bxf3 {[%emt 0:05:47]} 20. gxf3 {[%emt 0:00:40]} dxe5 {[%emt 0:00:11]} 21. dxe5 {[%emt 0:01:29]} Re6 {[%emt 0:00:44]} 22. Rad1 {[%emt 0:00:44]} g5 {[%emt 0:01:28]} 23. Kg2 {[%emt 0:02:04]} Kf8 {[%emt 0:01:33]} 24. Kg3 {[%emt 0:00:29]} Ke7 {[%emt 0:00:23]} 25. f4 {[%emt 0:01:37]} gxf4+ {[%emt 0:00:51]} 26. Kxf4 {[%emt 0:00:15]} Rh8 {[%emt 0:00:00]} 27. Rh1 {[%emt 0:01:04]} Rh3 {[%emt 0:00:22]} 28. Kg4 {[%emt 0:02:41]} Rb3 {[%emt 0:00:55]} 29. f4 {[%emt 0:01:25]} Rxb2 {[%emt 0:01:49]} 30. Rb1 {[%emt 0:01:28]} Ra2 {[%emt 0:02:14]} 31. Ra1 {[%emt 0:01:15]} Rg6+ {[%emt 0:01:51]} 32. Kf3 {[%emt 0:00:58]} Rgg2 {[%emt 0:00:10]} 33. Rxa2 {[%emt 0:06:01]} Rxa2 {[%emt 0:00:07]} 34. h4 {[%emt 0:01:07]} Rxa3+ {[%emt 0:00:05]} 35. Kg4 {[%emt 0:00:00]} c5 {[%emt 0:03:32]} 36. Rc1 {[%emt 0:00:46]} Rd3 {[%emt 0:00:04]} 37. h5 {[%emt 0:00:28]} Rd4 {[%emt 0:01:19]} 38. Ra1 {[%emt 0:01:19]} c4 {[%emt 0:00:00]} 39. Ra7 {[%emt 0:00:42]} Kd7 {[%emt 0:00:36]} 40. Ra1 {[%emt 0:00:35]} c3 {[%emt 0:00:00]} 41. Rc1 {[%emt 0:00:00]} Rc4 {[%emt 0:00:00]} 42. Kg5 {[%emt 0:00:00]} b5 {[%emt 0:00:05]} 43. f5 {[%emt 0:00:47]} b4 {[%emt 0:00:09]} 44. f6 {[%emt 0:00:00]} gxf6+ {[%emt 0:00:46]} 45. exf6 {[%emt 0:00:12]} Rc5+ {[%emt 0:00:45]} 46. Kh6 {[%emt 0:00:20]} b3 {[%emt 0:00:19]} 47. Kg7 {[%emt 0:00:14]} b2 {[%emt 0:00:26]} 48. Rh1 {[%emt 0:00:41]} c2 {[%emt 0:00:42]} 49. h6 {[%emt 0:00:09]} c1=Q {[%emt 0:00:00]} 50. Rh2 {[%emt 0:00:22]} b1=Q {[%emt 0:00:38]} 51. h7 {[%emt 0:00:15]} Qg5+ {[%emt 0:01:04]} 52. Kxf7 {[%emt 0:00:49]} Qgg6+ {[%emt 0:00:09]} 53. Kf8 {[%emt 0:00:00]} Qb8# {[%emt 0:00:06]} 0-1

[Event "White Rook U14 Final 2019"]
[Site "Sochi"]
[Date "2019.06.06"]
[Round "1.25"]
[White "Mongush, Kezhik"]
[Black "Morar, Kirill"]
[Result "1-0"]
[ECO "D94"]
[WhiteElo "1824"]
[BlackElo "1445"]
[Annotator "NA RC"]
[PlyCount "92"]
[EventDate "2019.06.02"]
[EventCountry "RUS"]
[SourceTitle "playchess.com"]
[Source "ChessBase"]
[SourceQuality "1"]
[TimeControl "5400+30"]

1. d4 {[%emt 0:00:00]} Nf6 {[%emt 0:00:00]} 2. c4 {[%emt 0:00:00]} g6 {[%emt 0:00:00]} 3. Nc3 {[%emt 0:00:30]} d5 {[%emt 0:00:30]} 4. Nf3 {[%emt 0:00:30]} Bg7 {[%emt 0:00:30]} 5. e3 {[%emt 0:01:34]} O-O {[%emt 0:00:10]} 6. Be2 {[%emt 0:00:12]} h6 {[%emt 0:00:09]} 7. O-O {[%emt 0:00:05]} Be6 {[%emt 0:00:02]} 8. cxd5 {[%emt 0:02:10]} Nxd5 {[%emt 0:00:22]} 9. e4 {[%emt 0:00:14]} Nxc3 {[%emt 0:00:35]} 10. bxc3 {[%emt 0:00:45]} c5 {[%emt 0:07:07]} 11. d5 {[%emt 0:00:22]} Bxc3 {[%emt 0:00:25]} 12. Rb1 {[%emt 0:00:29]} Bc8 {[%emt 0:00:07]} 13. Bxh6 {[%emt 0:00:05]} Bg7 {[%emt 0:00:26]} 14. Qc1 {[%emt 0:00:06]} Qc7 {[%emt 0:00:27]} 15. Bxg7 {[%emt 0:00:35]} Kxg7 {[%emt 0:05:24]} 16. Qc3+ {[%emt 0:00:10]} Kg8 {[%emt 0:00:37]} 17. Rfd1 {[%emt 0:00:03]} Rd8 {[%emt 0:00:23]} 18. Bc4 {[%emt 0:00:26]} Nd7 {[%emt 0:00:35]} 19. Rbc1 {[%emt 0:01:36]} a6 {[%emt 0:00:11]} 20. a4 {[%emt 0:00:05]} Rb8 {[%emt 0:01:16]} 21. a5 {[%emt 0:01:17]} b5 {[%emt 0:00:58]} 22. axb6 {[%emt 0:05:48]} Nxb6 {[%emt 0:01:13]} 23. Bb3 {[%emt 0:01:27]} Nd7 {[%emt 0:07:13]} 24. Ba4 {[%emt 0:01:58]} Nf6 {[%emt 0:02:28]} 25. d6 {[%emt 0:02:06]} Qa7 {[%emt 0:03:21]} 26. Qe5 {[%emt 0:00:07]} Be6 {[%emt 0:00:07]} 27. Ng5 {[%emt 0:00:21]} Kg7 {[%emt 0:01:26]} 28. Nxe6+ {[%emt 0:00:12]} fxe6 {[%emt 0:01:31]} 29. Qxe6 {[%emt 0:18:56]} Rxd6 {[%emt 0:07:02]} 30. Rxd6 {[%emt 0:01:06]} exd6 {[%emt 0:01:47]} 31. Qxd6 {[%emt 0:01:32]} Nxe4 {[%emt 0:00:49]} 32. Qe5+ {[%emt 0:00:26]} Nf6 {[%emt 0:00:18]} 33. h3 {[%emt 0:01:47]} Rb4 {[%emt 0:01:55]} 34. Bc6 {[%emt 0:00:36]} Kf7 {[%emt 0:00:09]} 35. Bd5+ {[%emt 0:00:09]} Nxd5 {[%emt 0:00:27]} 36. Qxd5+ {[%emt 0:00:04]} Ke7 {[%emt 0:00:10]} 37. Qe5+ {[%emt 0:00:48]} Kf7 {[%emt 0:02:52]} 38. Rxc5 {[%emt 0:00:54]} Rb1+ {[%emt 0:02:50]} 39. Kh2 {[%emt 0:00:57]} Rb7 {[%emt 0:00:43]} 40. Qd5+ {[%emt 0:00:04]} Kg7 {[%emt 0:02:08]} 41. Rc8 {[%emt 0:01:01]} Qb6 {[%emt 0:01:48]} 42. Qe5+ {[%emt 0:00:19]} Kf7 {[%emt 0:00:27]} 43. Qe8+ {[%emt 0:00:06]} Kf6 {[%emt 0:02:08]} 44. Rc6+ {[%emt 0:03:04]} Kg7 {[%emt 0:01:55]} 45. Qxg6+ {[%emt 0:01:07]} Kh8 {[%emt 0:03:39]} 46. Rc8+ {[%emt 0:01:45]} Qd8 {[%emt 0:01:09]} 1-0

[Event "White Rook U14 Final 2019"]
[Site "Sochi"]
[Date "2019.06.06"]
[Round "1.26"]
[White "Zadorozhny, Ioann"]
[Black "Fomkin, Dmitry"]
[Result "0-1"]
[ECO "B33"]
[WhiteElo "1365"]
[BlackElo "1733"]
[Annotator "NA RC"]
[PlyCount "70"]
[EventDate "2019.06.02"]
[EventCountry "RUS"]
[SourceTitle "playchess.com"]
[Source "ChessBase"]
[SourceQuality "1"]
[TimeControl "5400+30"]

1. e4 {[%emt 0:00:00]} c5 {[%emt 0:00:00]} 2. Nf3 {[%emt 0:00:00]} d6 {[%emt 0:00:32]} 3. d4 {[%emt 0:00:00]} cxd4 {[%emt 0:00:13]} 4. Nxd4 {[%emt 0:00:00]} Nf6 {[%emt 0:00:06]} 5. Nc3 {[%emt 0:00:07]} Nc6 {[%emt 0:00:05]} 6. f3 {[%emt 0:00:23]} e5 {[%emt 0:00:07]} 7. Ndb5 {[%emt 0:00:49]} a6 {[%emt 0:00:41]} 8. Na3 {[%emt 0:00:32]} b5 {[%emt 0:00:11]} 9. Nd5 {[%emt 0:00:17]} Be7 {[%emt 0:00:32]} 10. c4 {[%emt 0:00:12]} b4 {[%emt 0:00:54]} 11. Nc2 {[%emt 0:00:31]} a5 {[%emt 0:01:10]} 12. Be3 {[%emt 0:00:16]} Be6 {[%emt 0:00:24]} 13. Bb6 {[%emt 0:00:32]} Qb8 {[%emt 0:00:33]} 14. Nc7+ {[%emt 0:01:30]} Kf8 {[%emt 0:00:03]} 15. Nxa8 {[%emt 0:00:59]} Qxa8 {[%emt 0:00:04]} 16. Bf2 {[%emt 0:01:01]} g6 {[%emt 0:00:04]} 17. Qd2 {[%emt 0:00:29]} Kg7 {[%emt 0:01:00]} 18. Ne3 {[%emt 0:00:58]} Rd8 {[%emt 0:00:08]} 19. Nd5 {[%emt 0:01:32]} Qb8 {[%emt 0:01:41]} 20. Be3 {[%emt 0:00:17]} Nd7 {[%emt 0:00:51]} 21. Rd1 {[%emt 0:01:10]} Bf8 {[%emt 0:01:12]} 22. g4 {[%emt 0:02:22]} Kg8 {[%emt 0:01:12]} 23. h4 {[%emt 0:00:39]} f6 {[%emt 0:01:52]} 24. h5 {[%emt 0:00:55]} g5 {[%emt 0:01:24]} 25. Bxg5 {[%emt 0:00:28]} Nd4 {[%emt 0:00:24]} 26. Bg2 {[%emt 0:01:30]} Bxd5 {[%emt 0:01:24]} 27. cxd5 {[%emt 0:02:06]} fxg5 {[%emt 0:00:55]} 28. Qxg5+ {[%emt 0:00:23]} Kh8 {[%emt 0:00:38]} 29. Rxd4 {[%emt 0:00:18]} exd4 {[%emt 0:00:04]} 30. Qd2 {[%emt 0:00:12]} Qb6 {[%emt 0:00:12]} 31. g5 {[%emt 0:00:21]} Ne5 {[%emt 0:00:32]} 32. g6 {[%emt 0:00:21]} h6 {[%emt 0:01:20]} 33. f4 {[%emt 0:01:56]} Nc4 {[%emt 0:00:36]} 34. Qe2 {[%emt 0:03:30]} Ne3 {[%emt 0:00:10]} 35. f5 {[%emt 0:00:11]} Rc8 {[%emt 0:00:05]} 0-1

[Event "White Rook U14 Final 2019"]
[Site "Sochi"]
[Date "2019.06.06"]
[Round "1.27"]
[White "Ponomarev, Andrey A."]
[Black "Morar, Dmitriy"]
[Result "0-1"]
[ECO "B66"]
[WhiteElo "1919"]
[BlackElo "1332"]
[Annotator "NA RC"]
[PlyCount "64"]
[EventDate "2019.06.02"]
[EventCountry "RUS"]
[SourceTitle "playchess.com"]
[Source "ChessBase"]
[SourceQuality "1"]
[TimeControl "5400+30"]

1. e4 {[%emt 0:00:00]} c5 {[%emt 0:00:00]} 2. Nf3 {[%emt 0:00:08]} Nc6 {[%emt 0:00:00]} 3. d4 {[%emt 0:00:10]} cxd4 {[%emt 0:00:00]} 4. Nxd4 {[%emt 0:00:19]} Nf6 {[%emt 0:00:00]} 5. Nc3 {[%emt 0:00:39]} d6 {[%emt 0:00:00]} 6. Bg5 {[%emt 0:00:09]} e6 {[%emt 0:00:11]} 7. Qd2 {[%emt 0:00:06]} Be7 {[%emt 0:00:21]} 8. O-O-O {[%emt 0:00:10]} O-O {[%emt 0:00:00]} 9. f4 {[%emt 0:00:35]} a6 {[%emt 0:00:39]} 10. Be2 {[%emt 0:00:09]} Qc7 {[%emt 0:00:33]} 11. Bf3 {[%emt 0:00:41]} Rd8 {[%emt 0:01:01]} 12. Rhe1 {[%emt 0:03:54]} Rb8 {[%emt 0:04:39]} 13. Kb1 {[%emt 0:00:47]} Nxd4 {[%emt 0:14:53]} 14. Qxd4 {[%emt 0:00:07]} b5 {[%emt 0:00:46]} 15. e5 {[%emt 0:10:26]} Ne8 {[%emt 0:01:50]} 16. Bxe7 {[%emt 0:00:22]} Qxe7 {[%emt 0:00:11]} 17. Ne4 {[%emt 0:00:00]} d5 {[%emt 0:02:00]} 18. Nc5 {[%emt 0:00:59]} Nc7 {[%emt 0:00:45]} 19. a3 {[%emt 0:07:37]} a5 {[%emt 0:03:10]} 20. g4 {[%emt 0:00:27]} b4 {[%emt 0:02:23]} 21. a4 {[%emt 0:00:23]} Na6 {[%emt 0:02:03]} 22. Nxa6 {[%emt 0:00:08]} Bxa6 {[%emt 0:00:07]} 23. f5 {[%emt 0:02:18]} Rdc8 {[%emt 0:06:59]} 24. b3 {[%emt 0:00:00]} Qc7 {[%emt 0:00:52]} 25. Rd2 {[%emt 0:06:26]} Qc3 {[%emt 0:02:15]} 26. Qf2 {[%emt 0:01:24]} Qc5 {[%emt 0:03:03]} 27. Qg2 {[%emt 0:01:24]} Qa7 {[%emt 0:06:53]} 28. f6 {[%emt 0:02:48]} Rc3 {[%emt 0:01:37]} 29. Qg3 {[%emt 0:10:58]} Rbc8 {[%emt 0:02:32]} 30. Qf4 {[%emt 0:02:30]} Qc5 {[%emt 0:04:27]} 31. Bd1 {[%emt 0:06:53]} Rxb3+ {[%emt 0:02:07]} 32. cxb3 {[%emt 0:00:00]} Qc1+ {[%emt 0:00:00]} 0-1